bitfinex-derivatives/quotes_ETHF0:USTF0_20250116
["timestamp","ask_amount","ask_price","bid_price","bid_amount"]
[1737068082749,0.60697,3295.6,3295.4,1.82399]
[1737068083255,0.60697,3295.6,3295.4,1.217]
[1737068083554,0.60697,3295.6,3295.4,1.82398]
[1737068084054,2.3778,3295.8,3295.4,1.82398]
[1737068084356,2.98472,3295.8,3295.7,2.34153332]
[1737068088251,1.77382,3295.8,3295.7,2.34153332]
[1737068092556,1.77382,3295.8,3295.7,2.94847332]
[1737068092951,1.77382,3295.8,3295.7,2.34153332]
[1737068093752,0.60688,3296.1,3295.7,0.60694]
[1737068093958,0.60686,3296.1,3296.0,2.34153332]
[1737068098455,0.60686,3296.1,3296.0,2.94841332]
[1737068099457,0.60685,3296.2,3296.1,0.60686]
[1737068100350,5.6389,3296.3,3296.0,2.34153332]
[1737068100351,6.24574,3296.3,3296.2,0.60685]
[1737068100550,6.24574,3296.3,3296.0,2.34153332]
[1737068100551,5.6389,3296.3,3296.0,2.94841332]
[1737068100757,0.60686,3296.2,3296.1,0.60686]
[1737068101357,5.6389,3296.3,3296.0,2.34153332]
[1737068101560,2.4311,3296.3,3296.2,0.60685]
[1737068101853,3.03793,3296.3,3296.2,0.60685]
[1737068102361,2.4311,3296.3,3296.2,0.60685]
[1737068103966,2.4311,3296.3,3296.1,1.221]
[1737068104168,3.03794,3296.3,3296.2,0.60685]
[1737068105164,2.4311,3296.3,3296.1,1.82786]
[1737068105463,0.60685,3296.2,3296.1,1.82786]
[1737068106160,0.60685,3296.2,3296.1,1.221]
[1737068106356,2.4311,3296.3,3296.2,0.60685]
[1737068106357,3.03794,3296.3,3296.2,0.60685]
[1737068106561,0.60685,3296.2,3296.1,1.221]
[1737068107462,0.60685,3296.2,3296.1,0.60686]
[1737068107663,2.88640379,3296.3,3296.1,0.60686]
[1737068107857,3.49325379,3296.3,3296.1,0.60686]
[1737068108065,6.56062818,3296.3,3296.1,0.60686]
[1737068108264,6.56062818,3296.3,3296.0,2.77982811]
[1737068108565,5.95377818,3296.3,3296.2,0.60685]
[1737068109360,2.4311,3296.3,3296.2,0.60685]
[1737068111971,2.88636015,3296.3,3296.2,0.60685]
[1737068113666,7.59666241,3296.3,3296.2,0.60685]
[1737068115270,2.88636015,3296.3,3296.2,0.60685]
[1737068116571,2.4311,3296.3,3296.2,0.60685]
[1737068116972,2.4311,3296.3,3295.6,4.4019]
[1737068117167,0.60692,3295.9,3295.8,2.34153332]
[1737068117574,0.60689,3296.0,3295.8,2.34153332]
[1737068117874,0.60689,3296.0,3295.8,2.94843332]
[1737068118068,3.53304528,3295.9,3295.8,2.94843332]
[1737068118260,3.53304528,3295.9,3295.8,2.34153332]
[1737068118466,4.13994528,3295.9,3295.8,2.34153332]
[1737068118866,3.53304528,3295.9,3295.8,2.34153332]
[1737068119173,3.53304528,3295.9,3295.8,2.94845332]
[1737068119365,11.21339686,3295.9,3295.8,2.34153332]
[1737068119568,11.21339686,3295.9,3295.8,2.94845332]
[1737068120692,5.88787782,3295.9,3295.8,2.94845332]
[1737068120986,5.88787782,3295.9,3295.8,4.17305332]
[1737068122084,0.45526015,3296.0,3295.8,3.56613332]
[1737068122085,5.88787782,3296.0,3295.8,3.56613332]
[1737068122279,5.88787782,3296.0,3295.9,0.6069]
[1737068123086,5.88787782,3296.0,3295.9,1.757]
[1737068123592,5.88787782,3296.0,3295.9,2.9675]
[1737068124484,6.34313797,3296.0,3295.9,2.9675]
[1737068125790,0.45526015,3296.0,3295.9,2.9675]
[1737068126892,0.45526015,3296.0,3295.9,43.7675]
[1737068128094,0.45526015,3296.0,3295.9,45.09538492]
[1737068128487,6.35403043,3296.0,3295.9,45.09538492]
[1737068129994,6.35403043,3296.1,3295.9,44.48848492]
[1737068130193,6.35403043,3296.1,3296.0,2.94841332]
[1737068130590,6.35403043,3296.1,3296.0,4.27629824]
[1737068131296,6.35403043,3296.1,3296.0,4.92801536]
[1737068131495,6.35403043,3296.1,3296.0,45.72801536]
[1737068131695,0.45526015,3296.1,3296.0,42.73476492]
[1737068131893,0.45526015,3296.1,3296.0,45.07629824]
[1737068132496,0.45526015,3296.1,3296.0,43.74841332]
[1737068133395,0.45779853,3296.1,3296.0,45.07605022]
[1737068133600,0.00253838,3296.1,3296.0,45.07605022]
[1737068134896,3.5418644,3296.1,3296.0,45.07605022]
[1737068137702,0.45526015,3296.3,3296.2,0.60685]
[1737068137888,0.45526015,3296.3,3296.2,6.3622869]
[1737068138595,0.45526015,3296.3,3296.2,47.1622869]
[1737068138798,0.00575883,3296.4,3296.3,0.60683]
[1737068138991,0.00575883,3296.4,3296.3,2.94836332]
[1737068139392,0.00575883,3296.4,3296.3,0.60683]
[1737068139593,0.00575883,3296.4,3296.3,2.94836332]
[1737068140799,0.00575883,3296.4,3296.3,4.08876332]
[1737068141399,4.72009243,3296.7,3296.6,0.60677]
[1737068141595,4.72009243,3296.7,3296.6,6.15610332]
[1737068141798,4.72009243,3296.7,3296.6,6.80635692]
[1737068142395,4.72009243,3296.7,3296.6,6.80610877]
[1737068142595,4.72009243,3296.7,3296.6,8.13354642]
[1737068143106,4.72009243,3297.1,3297.0,0.6067]
[1737068143398,4.72009243,3297.1,3297.0,5.0345]
[1737068143598,4.72009243,3297.1,3297.0,6.36191616]
[1737068143799,4.72009243,3297.1,3297.0,7.01151576]
[1737068143989,4.72009243,3297.1,3297.0,47.81151576]
[1737068144395,4.72009243,3297.6,3297.5,0.60661]
[1737068144797,4.72009243,3297.6,3297.5,2.94814332]
[1737068145694,1.2072,3297.9,3297.8,0.60655]
[1737068145896,1.2072,3297.9,3297.8,44.96808332]
[1737068147694,1.2072,3297.9,3297.8,48.17588332]
[1737068156507,1.1113,3298.1,3298.0,0.60652]
[1737068157605,1.1538,3298.2,3297.9,1.1253]
[1737068157806,1.1538,3298.2,3298.1,2.94803332]
[1737068159403,1.1538,3298.2,3298.1,5.28956664]
[1737068160509,2.371,3298.6,3298.5,0.60642]
[1737068160711,2.4239,3298.6,3298.5,4.16695332]
[1737068163108,2.4239,3298.6,3298.5,44.96695332]
[1737068167404,3.8141,3299.2,3298.5,44.36053332]
[1737068167704,1.1956,3299.1,3299.0,0.60633]
[1737068169909,1.1956,3299.1,3299.0,3.81413]
[1737068170509,1.1956,3299.1,3299.0,6.15566332]
[1737068171404,0.60623,3299.6,3299.0,6.15566332]
[1737068171608,0.60623,3299.6,3299.5,2.34153332]
[1737068171908,0.60623,3299.6,3299.5,2.94777332]
[1737068173206,3.456,3299.8,3299.4,1.219]
[1737068173402,4.9715,3299.8,3299.5,2.34153332]
[1737068173602,3.2078,3299.6,3298.4,3.2078]
[1737068173809,3.2078,3299.1,3298.0,5.94307]
[1737068174008,0.60648,3298.3,3298.2,0.60645]
[1737068174709,3.2078,3298.7,3298.1,1.219]
[1737068174915,3.2078,3298.7,3298.1,1.82548]
[1737068174916,0.60649,3298.2,3298.1,1.82548]
[1737068175211,0.60649,3298.2,3298.1,2.34153332]
[1737068176707,1.82799,3298.2,3298.1,2.34153332]
[1737068176904,2.98409,3298.2,3298.1,2.34153332]
[1737068177314,0.60653,3297.9,3297.8,1.219]
[1737068177613,0.60653,3297.9,3297.8,2.34153332]
[1737068177810,3.2078,3297.9,3297.6,40.8]
[1737068178011,0.60657,3297.7,3297.6,40.8]
[1737068178518,0.60664,3297.3,3297.2,2.34153332]
[1737068178815,0.60664,3297.3,3297.2,43.14153332]
[1737068179313,0.60664,3297.3,3297.2,2.34153332]
[1737068180212,5.60664,3297.3,3297.2,2.34153332]
[1737068180420,0.6067,3297.0,3296.9,2.34153332]
[1737068180616,3.8145,3297.0,3296.9,2.34153332]
[1737068182713,8.2078,3297.0,3296.3,2.34153332]
[1737068183017,0.60681,3296.4,3296.3,2.34153332]
[1737068183214,3.2078,3296.6,3296.3,40.8]
[1737068183424,0.60681,3296.4,3296.3,40.8]
[1737068183618,1.6662,3296.5,3296.0,2.34153332]
[1737068183920,0.60687,3296.1,3296.0,2.34153332]
[1737068184523,1.6662,3296.5,3296.0,2.34153332]
[1737068184708,0.60685,3296.2,3296.0,2.34153332]
[1737068185017,0.60685,3296.2,3296.1,40.8]
[1737068185220,0.60687,3296.1,3296.0,2.34153332]
[1737068185723,0.60687,3296.1,3296.0,43.14153332]
[1737068186218,0.60687,3296.1,3296.0,2.34153332]
[1737068186807,0.60687,3296.1,3295.9,2.34153332]
[1737068187421,0.60687,3296.1,3296.0,40.8]
[1737068189124,0.60688,3296.0,3295.9,2.34153332]
[1737068191523,0.60691,3295.9,3295.7,1.82593]
[1737068192520,0.60687,3296.1,3295.7,1.82592]
[1737068192721,3.2078,3296.2,3295.6,5.54933332]
[1737068192926,3.2078,3296.2,3295.6,6.76833332]
[1737068193229,0.60687,3296.1,3295.9,0.6069]
[1737068193429,3.2078,3296.2,3296.0,1.2365]
[1737068193631,3.81466,3296.2,3296.0,1.2365]
[1737068193823,0.60687,3296.1,3296.0,1.2365]
[1737068195929,3.2078,3296.2,3296.0,1.2365]
[1737068196133,3.81465,3296.2,3296.0,1.84338]
[1737068197326,3.81465,3296.2,3296.0,1.2365]
[1737068197533,3.2078,3296.2,3296.1,0.60686]
[1737068197931,3.81465,3296.2,3296.1,0.60686]
[1737068198231,3.2078,3296.2,3296.1,0.60686]
[1737068198625,3.81465,3296.2,3296.1,0.60686]
[1737068200440,3.2078,3296.2,3296.1,0.60686]
[1737068200826,3.2078,3296.2,3296.1,41.40686]
[1737068202832,0.60679,3296.6,3296.1,40.8]
[1737068203032,3.2078,3296.7,3296.4,0.6068]
[1737068203227,0.60679,3296.5,3296.4,0.6068]
[1737068203535,0.60679,3296.6,3296.3,1.219]
[1737068203728,0.60679,3296.6,3296.5,0.60679]
[1737068204729,0.60678,3296.6,3296.5,0.60678]
[1737068205035,0.60679,3296.6,3296.5,0.60678]
[1737068205937,3.2078,3296.7,3296.3,1.219]
[1737068206135,3.81457,3296.7,3296.6,0.60677]
[1737068206333,3.2078,3296.7,3296.6,0.60677]
[1737068207331,3.54758719,3297.3,3296.5,2.34153332]
[1737068207332,6.75538719,3297.3,3296.5,2.34153332]
[1737068207539,0.60669,3297.1,3297.0,0.60668]
[1737068209039,5.01416,3297.3,3297.2,0.60666]
[1737068209238,5.01416,3297.3,3297.0,1.219]
[1737068209434,3.81446,3297.3,3297.2,0.60666]
[1737068211540,3.2078,3297.3,3297.2,0.60666]
[1737068211734,3.81444,3297.3,3297.2,0.60666]
[1737068211935,3.2078,3297.3,3297.2,0.60666]
[1737068212336,3.81444,3297.3,3297.2,0.60666]
[1737068212534,3.2078,3297.3,3297.2,0.60666]
[1737068214538,1.1438,3297.6,3297.2,0.60666]
[1737068214743,0.6066,3297.6,3297.5,0.60659]
[1737068215031,5.55568719,3297.7,3297.6,0.60659]
[1737068215236,6.16225719,3297.7,3297.6,0.60659]
[1737068215437,3.81437,3297.7,3297.6,0.60659]
[1737068216331,3.2078,3297.7,3297.6,0.60659]
[1737068216730,3.81437,3297.7,3297.6,1.79149]
[1737068218238,3.81437,3297.7,3297.6,2.98869]
[1737068218547,6.16225719,3297.7,3297.6,2.98869]
[1737068219045,6.16225719,3297.7,3297.6,2.3821]
[1737068219248,6.16225719,3297.7,3297.6,2.98869]
[1737068219738,3.81437,3297.7,3297.6,2.98869]
[1737068220737,3.81437,3297.7,3297.2,0.60666]
[1737068220738,0.60666,3297.3,3297.2,0.60664]
[1737068221054,0.60666,3297.2,3297.1,5.30610332]
[1737068221733,0.60665,3297.3,3297.2,0.60666]
[1737068221938,0.60665,3297.3,3297.1,5.30610332]
[1737068222235,0.60665,3297.3,3297.2,1.79156]
[1737068222546,0.60665,3297.3,3297.2,1.1849]
[1737068222942,0.60665,3297.3,3297.2,2.4029]
[1737068223835,1.06177816,3297.3,3297.2,2.4029]
[1737068224336,4.26957816,3297.3,3297.2,2.4029]
[1737068224634,3.66292816,3297.3,3296.9,1.1972]
[1737068224837,0.6067,3297.0,3296.9,1.1972]
[1737068225038,0.6067,3297.0,3296.9,2.4152]
[1737068225238,0.6067,3297.0,3296.9,1.218]
[1737068226640,1.06182816,3297.0,3296.9,1.218]
[1737068227143,2.29302816,3297.0,3296.9,1.218]
[1737068227951,1.68632816,3297.0,3296.6,3.2078]
[1737068228142,0.60674,3296.8,3296.7,1.218]
[1737068228947,3.2078,3296.8,3296.5,3.49863332]
[1737068229149,0.60677,3296.6,3296.5,5.32341332]
[1737068229648,0.60677,3296.6,3296.5,4.71663332]
[1737068230242,0.60677,3296.6,3296.5,3.49863332]
[1737068230946,1.06189816,3296.6,3296.5,3.49863332]
[1737068231339,1.06189816,3296.6,3296.5,4.71663332]
[1737068233651,4.59503563,3296.6,3296.5,4.71663332]
[1737068234947,1.06189816,3296.6,3296.5,4.71663332]
[1737068235647,0.60683,3296.3,3296.2,2.34153332]
[1737068235848,0.60683,3296.3,3296.2,3.55953332]
[1737068237452,4.14160427,3296.3,3296.2,3.55953332]
[1737068237656,3.53477427,3296.3,3296.2,3.55953332]
[1737068237950,4.14160427,3296.3,3296.2,5.37058332]
[1737068238157,4.14160427,3296.3,3296.2,4.76373332]
[1737068238354,3.53477427,3296.3,3296.2,5.37058332]
[1737068238754,5.32689243,3296.5,3296.2,5.37058332]
[1737068238755,5.17534689,3296.4,3296.2,4.76373332]
[1737068238956,5.17534689,3296.4,3296.3,0.60683]
[1737068240061,3.5357376,3296.4,3296.3,0.60683]
[1737068240462,1.6741376,3296.4,3296.3,0.60683]
[1737068241357,2.35774502,3296.6,3296.5,0.60679]
[1737068241557,2.35774502,3296.6,3296.5,2.94832332]
[1737068246864,2.35774502,3296.7,3296.6,0.60677]
[1737068247065,2.35774502,3296.7,3296.6,4.09870332]
[1737068247467,2.35774502,3296.7,3296.6,9.09870332]
[1737068248171,3.33696278,3297.0,3296.9,0.60672]
[1737068248467,6.33271367,3297.5,3297.4,0.60663]
[1737068248662,6.33271367,3297.5,3297.4,6.15596332]
[1737068249566,0.6065,3298.1,3297.9,0.60653]
[1737068249766,0.6065,3298.1,3298.0,1.218]
[1737068250372,1.1362,3298.2,3298.1,0.6065]
[1737068250665,1.1362,3298.2,3298.0,1.8245]
[1737068251083,1.1362,3298.2,3298.1,0.6065]
[1737068251280,5.89877028,3298.3,3298.1,0.6065]
[1737068251489,5.89877028,3298.3,3298.2,0.60648]
[1737068252189,7.10707028,3298.7,3298.1,2.4134]
[1737068252385,11.65879473,3298.7,3298.6,0.6064]
[1737068252887,11.65879473,3298.7,3298.1,3.92964]
[1737068253189,15.47298473,3298.7,3298.5,0.60641]
[1737068253388,14.86659473,3298.7,3298.1,2.4134]
[1737068253588,4.4161,3298.7,3298.6,0.6064]
[1737068257290,1.2083,3298.7,3298.6,0.6064]
[1737068258796,9.10657028,3299.2,3299.1,0.60631]
[1737068259095,0.60628,3299.3,3299.1,1.217]
[1737068259299,8.25097028,3299.5,3299.1,1.217]
[1737068259596,0.60629,3299.3,3299.2,0.60629]
[1737068259783,0.60628,3299.3,3299.1,1.217]
[1737068259987,0.60627,3299.4,3299.2,0.60629]
[1737068260187,0.60627,3299.4,3299.3,0.60628]
[1737068260492,1.1485,3299.5,3299.4,0.60626]
[1737068261194,1.75474,3299.5,3299.4,0.60626]
[1737068261393,1.1485,3299.5,3299.4,0.60626]
[1737068261595,1.75476,3299.5,3299.1,1.217]
[1737068261794,1.1485,3299.5,3299.4,0.60626]
[1737068262097,1.1485,3299.5,3299.1,1.217]
[1737068262497,1.1485,3299.5,3299.4,0.60626]
[1737068262999,1.75474,3299.5,3299.4,0.60626]
[1737068263204,1.75474,3299.5,3299.3,0.60626]
[1737068264291,1.1485,3299.5,3299.1,1.217]
[1737068264493,1.1485,3299.5,3299.4,0.60626]
[1737068269104,1.75475,3299.5,3299.3,0.60626]
[1737068269306,1.1485,3299.5,3299.4,0.60626]
[1737068269501,1.1485,3299.5,3299.1,1.217]
[1737068270005,0.60627,3299.4,3299.2,0.60628]
[1737068270206,0.60628,3299.3,3299.1,0.6063]
[1737068270405,1.1133,3299.3,3299.2,1.217]
[1737068270607,1.71958,3299.3,3299.2,1.217]
[1737068270801,1.1133,3299.3,3298.9,3.2078]
[1737068271002,0.60631,3299.1,3299.0,1.217]
[1737068271204,5.8368,3299.3,3298.9,1.217]
[1737068271405,0.60633,3299.0,3298.9,1.217]
[1737068272705,5.8368,3299.3,3298.9,1.217]
[1737068273107,0.60633,3299.0,3298.9,1.217]
[1737068274206,5.8368,3299.3,3298.9,1.216]
[1737068274506,5.8368,3299.3,3298.7,0.60639]
[1737068274710,0.60637,3298.9,3298.8,1.216]
[1737068275405,0.60637,3298.9,3298.7,0.60639]
[1737068275605,1.1401,3298.8,3298.7,0.60639]
[1737068275810,1.1401,3298.8,3298.7,1.82239]
[1737068281511,6.66263332,3299.3,3298.9,0.60634]
[1737068281706,0.60633,3299.0,3298.9,0.60634]
[1737068282009,0.60633,3299.0,3298.7,1.216]
[1737068282010,0.60636,3298.9,3298.8,0.60637]
[1737068282508,0.60636,3298.9,3298.7,1.82238]
[1737068282710,3.2078,3298.9,3298.7,1.216]
[1737068282910,0.60642,3298.5,3298.4,3.2078]
[1737068283211,3.2078,3298.5,3297.9,1.30228164]
[1737068283409,0.6065,3298.1,3298.0,1.216]
[1737068283708,1.51639,3297.8,3297.5,1.216]
[1737068283914,0.60665,3297.3,3297.2,1.216]
[1737068284208,0.60665,3297.3,3297.0,1.82368]
[1737068284701,3.2078,3297.3,3297.0,1.217]
[1737068285014,0.60668,3297.1,3297.0,1.217]
[1737068289611,3.81445,3297.3,3297.1,0.60667]
[1737068289811,0.60667,3297.2,3297.0,1.82369]
[1737068290209,0.60668,3297.1,3297.0,1.217]
[1737068290407,3.2078,3297.3,3297.0,1.82369]
[1737068290611,0.60668,3297.1,3297.0,1.217]
[1737068291019,0.60668,3297.1,3297.0,1.8237]
[1737068291409,3.2078,3297.3,3297.0,1.8237]
[1737068291713,0.60668,3297.1,3297.0,1.8237]
[1737068291905,0.60668,3297.1,3297.0,1.217]
[1737068292315,0.60668,3297.1,3297.0,1.8237]
[1737068292513,3.2078,3297.3,3297.0,1.217]
[1737068292711,0.60667,3297.2,3297.1,0.60667]
[1737068292913,3.2078,3297.3,3297.0,1.217]
[1737068293207,3.2078,3297.3,3297.2,0.60666]
[1737068296613,0.6066,3297.6,3297.4,0.60662]
[1737068297210,2.2605,3297.7,3297.1,1.2046]
[1737068297417,2.86708,3297.7,3297.5,0.6066]
[1737068297615,2.2605,3297.7,3297.1,1.2046]
[1737068298019,2.86709,3297.7,3297.1,1.2046]
[1737068298316,2.2605,3297.7,3297.5,0.6066]
[1737068298518,1.1482,3297.7,3297.6,0.60659]
[1737068298820,1.1482,3297.7,3297.5,0.60659]
[1737068299122,0.6066,3297.6,3297.4,0.60662]
[1737068299323,1.1482,3297.7,3297.1,4.4124]
[1737068299622,1.1482,3297.7,3297.5,0.60659]
[1737068299915,1.1482,3297.7,3297.1,5.92908]
[1737068300122,1.1482,3297.7,3297.6,0.60659]
[1737068301420,3.52790786,3298.2,3298.0,0.6065]
[1737068301616,0.6065,3298.1,3298.0,0.6065]
[1737068301822,0.60649,3298.2,3298.1,0.60649]
[1737068303124,0.60652,3298.1,3298.0,0.6065]
[1737068304428,0.60653,3298.0,3297.9,0.60652]
[1737068306627,0.60666,3297.3,3297.2,0.60665]
[1737068308017,0.60666,3297.3,3297.1,4.4238]
[1737068308018,0.60666,3297.2,3297.1,5.03046]
[1737068308628,0.60666,3297.2,3297.1,3.2078]
[1737068308830,0.60666,3297.2,3297.1,4.4238]
[1737068309332,0.60666,3297.2,3297.1,3.2078]
[1737068309625,0.60666,3297.2,3297.1,1.216]
[1737068310628,0.60666,3297.2,3296.9,1.1454]
[1737068310629,0.6067,3297.0,3296.9,1.1454]
[1737068310926,0.60677,3296.6,3296.5,5.5085]
[1737068311134,0.60677,3296.6,3296.5,4.3461]
[1737068311429,0.60677,3296.6,3296.5,1.216]
[1737068320937,0.60677,3296.6,3296.4,1.8238]
[1737068321132,0.60677,3296.6,3296.5,0.60679]
[1737068321538,0.60677,3296.6,3296.4,1.8238]
[1737068321841,0.60677,3296.6,3296.5,0.60679]
[1737068322342,0.60677,3296.6,3296.4,1.82379]
[1737068322542,0.60677,3296.6,3296.5,0.60679]
[1737068323436,1.1409,3296.8,3296.5,0.60679]
[1737068323739,0.60677,3296.7,3296.5,0.60679]
[1737068324133,0.60677,3296.7,3296.5,0.60678]
[1737068324335,0.60677,3296.7,3296.4,1.217]
[1737068324641,0.60677,3296.7,3296.5,0.60679]
[1737068326240,0.60677,3296.6,3296.5,0.60679]
[1737068326544,1.1409,3296.8,3296.5,0.60679]
[1737068326741,0.60674,3296.8,3296.7,0.60674]
[1737068327340,5.34103786,3296.9,3296.5,0.60679]
[1737068327539,5.34103786,3296.9,3296.8,0.60674]
[1737068328244,1.81313,3296.9,3296.8,0.60674]
[1737068329847,2.26829992,3296.9,3296.8,0.60674]
[1737068330140,0.45516992,3296.9,3296.8,0.60674]
[1737068331342,4.69773988,3297.0,3296.9,0.60672]
[1737068332844,3.54548442,3297.1,3297.0,0.6067]
[1737068335347,3.54548442,3297.1,3297.0,1.8227]
[1737068335547,4.00065434,3297.2,3297.1,0.60668]
[1737068337045,4.00065434,3297.2,3295.9,9.74931688]
[1737068337046,5.88701774,3297.2,3296.2,7.97959401]
[1737068337249,3.2078,3297.0,3296.4,1.8182]
[1737068337550,0.60679,3296.5,3296.4,1.2114]
[1737068338047,1.1542,3296.8,3296.4,1.2114]
[1737068338249,3.54548442,3296.5,3296.4,1.2114]
[1737068338644,4.15227442,3296.5,3296.4,1.2114]
[1737068340647,0.60681,3296.4,3296.3,2.4072]
[1737068340845,4.15228442,3296.5,3296.3,1.216]
[1737068341041,4.00069838,3296.5,3296.3,1.216]
[1737068341247,4.00069838,3296.5,3296.4,0.60681]
[1737068342249,3.54548442,3296.6,3296.3,1.216]
[1737068342450,3.54548442,3296.6,3296.5,0.60679]
[1737068344862,4.00069838,3296.7,3296.5,0.60679]
[1737068345153,4.00069838,3296.7,3296.6,0.60677]
[1737068346046,4.00069838,3296.7,3296.4,0.60681]
[1737068346249,0.60677,3296.6,3296.5,0.60679]
[1737068346443,4.60745838,3296.7,3296.5,0.60679]
[1737068347653,4.00069838,3296.6,3296.5,0.60679]
[1737068347854,4.00069838,3296.6,3296.4,1.216]
[1737068348051,0.6068,3296.5,3296.4,1.216]
[1737068348851,4.60749838,3296.5,3296.4,1.216]
[1737068349345,4.60749838,3296.5,3296.4,1.82281]
[1737068350059,4.00069838,3296.5,3295.5,4.77179401]
[1737068350252,0.60689,3296.0,3295.9,0.6069]
[1737068350558,0.60689,3296.0,3295.8,1.82291]
[1737068350755,1.1192,3295.9,3295.8,1.82291]
[1737068351146,1.7261,3295.9,3295.8,1.82291]
[1737068351350,1.1192,3295.9,3295.8,1.82291]
[1737068352365,3.5469566,3296.0,3295.8,1.216]
[1737068352550,4.69773988,3296.2,3296.1,0.60686]
[1737068352551,4.17514733,3296.2,3296.1,0.60686]
[1737068352757,5.89877028,3296.4,3296.3,0.60683]
[1737068353051,2.19557028,3296.4,3296.3,3.59903687]
[1737068353252,2.18417028,3296.4,3296.3,43.74836332]
[1737068353454,2.18417028,3296.4,3296.3,44.3990368]
[1737068353660,1.225,3297.2,3297.1,0.60668]
[1737068355360,1.83166,3297.2,3297.1,0.60668]
[1737068356161,6.09506703,3297.2,3297.1,0.60668]
[1737068356462,5.48840703,3297.2,3297.1,0.60668]
[1737068357062,5.48840703,3297.2,3297.0,1.216]
[1737068357257,0.60668,3297.1,3297.0,1.216]
[1737068358458,0.60672,3296.9,3296.7,1.82274]
[1737068358658,4.86991308,3297.1,3296.9,0.6067]
[1737068358858,4.26323308,3297.1,3296.9,0.6067]
[1737068359158,4.86991308,3297.1,3296.9,0.6067]
[1737068359357,4.86991308,3297.1,3296.7,1.216]
[1737068359358,0.60675,3296.8,3296.5,3.81458]
[1737068359668,1.75556,3296.7,3296.6,1.216]
[1737068360674,1.1488,3296.7,3296.6,1.82277]
[1737068360959,1.75555,3296.7,3296.6,1.216]
[1737068361161,1.1488,3296.7,3296.6,1.82277]
[1737068362354,1.1488,3296.7,3296.6,0.60677]
[1737068362561,1.1488,3296.7,3296.5,1.216]
[1737068362760,1.2166,3296.6,3296.5,1.82278]
[1737068363663,0.60683,3296.4,3296.2,0.60684]
[1737068363857,0.60681,3296.4,3296.3,1.215]
[1737068367865,1.1868,3296.5,3295.8,3.85881332]
[1737068368067,1.1868,3296.5,3295.8,5.07381332]
[1737068368265,0.60681,3296.4,3296.3,0.60682]
[1737068369173,0.60681,3296.4,3296.2,0.60684]
[1737068369568,0.60681,3296.4,3295.8,5.07381332]
[1737068369569,1.1868,3296.5,3295.8,5.07381332]
[1737068369769,1.1868,3296.5,3296.3,0.60683]
[1737068370070,1.79361,3296.5,3296.3,0.60683]
[1737068370469,1.79361,3296.5,3296.4,0.60681]
[1737068370867,1.1868,3296.5,3296.4,0.60681]
[1737068372166,6.87110447,3297.0,3296.4,2.34153332]
[1737068372369,9.76441447,3297.0,3296.9,0.60672]
[1737068372670,2.89331,3297.0,3296.9,0.60672]
[1737068377269,2.2866,3297.0,3296.9,0.60672]
[1737068377471,5.91415677,3297.2,3296.7,2.34153332]
[1737068377668,5.91415677,3297.2,3297.1,0.60668]
[1737068378571,5.91415677,3297.2,3297.0,2.34153332]
[1737068378572,5.91415677,3297.6,3297.0,2.34153332]
[1737068378778,5.91415677,3297.6,3297.5,0.60661]
[1737068378980,5.91415677,3297.6,3297.5,1.82161]
[1737068380277,3.2078,3297.8,3297.7,0.60657]
[1737068380670,3.5884,3297.9,3297.5,1.215]
[1737068380870,2.4188,3297.9,3297.8,0.60655]
[1737068381272,1.19,3297.9,3297.8,0.60655]
[1737068381479,10.28945677,3298.2,3297.7,3.2078]
[1737068381683,10.28945677,3298.2,3298.1,0.6065]
[1737068382177,7.08165677,3298.2,3298.1,0.6065]
[1737068382393,5.91415677,3298.2,3298.1,0.6065]
[1737068382882,5.91415677,3298.2,3298.1,3.8143]
[1737068383086,1.2294,3298.5,3298.4,0.60644]
[1737068383681,5.91415677,3298.7,3298.6,0.6064]
[1737068384483,4.72252123,3298.9,3298.5,2.34153332]
[1737068384685,4.72252123,3298.9,3298.8,0.60636]
[1737068386186,2.36000197,3299.1,3299.0,0.60633]
[1737068386487,2.36000197,3299.1,3299.0,1.82133]
[1737068386890,2.36000197,3299.1,3299.0,6.82133]
[1737068387082,1.76820197,3299.1,3299.0,6.82133]
[1737068387784,3.2078,3299.8,3299.0,6.215]
[1737068387981,3.81399,3299.8,3299.4,0.60624]
[1737068388188,3.81399,3299.8,3299.5,0.60623]
[1737068388687,3.2078,3299.8,3299.5,0.60623]
[1737068388880,3.2078,3299.8,3299.6,0.60622]
[1737068389084,3.2078,3299.8,3299.7,1.215]
[1737068389292,3.81398,3299.8,3299.7,1.215]
[1737068389493,3.2078,3299.8,3299.7,1.215]
[1737068389794,3.81398,3299.8,3299.7,1.215]
[1737068390588,3.2078,3299.8,3299.7,1.215]
[1737068390787,0.60623,3299.6,3299.5,1.215]
[1737068393190,3.2078,3299.8,3299.3,1.215]
[1737068393395,2.3228,3299.5,3298.9,3.2078]
[1737068393596,0.60635,3298.9,3298.8,2.34153332]
[1737068394088,2.3228,3299.5,3298.2,2.34153332]
[1737068394089,0.60642,3298.6,3298.2,2.34153332]
[1737068394295,2.85063,3298.5,3298.3,0.60645]
[1737068394597,0.60644,3298.4,3298.3,1.214]
[1737068394898,0.60646,3298.3,3298.2,3.55553332]
[1737068395394,2.85063,3298.5,3298.2,2.94800332]
[1737068395590,0.60645,3298.4,3298.2,2.94801332]
[1737068395895,2.85063,3298.5,3298.2,2.94801332]
[1737068396192,2.85063,3298.5,3298.3,0.60646]
[1737068396790,2.85063,3298.5,3298.4,0.60644]
[1737068396991,2.2442,3298.5,3298.4,0.60644]
[1737068397892,2.85062,3298.5,3298.4,0.60644]
[1737068398190,2.2442,3298.5,3298.4,0.60644]
[1737068399696,2.2442,3298.5,3298.2,3.55553332]
[1737068399998,2.2442,3298.5,3298.3,0.60645]
[1737068399999,0.60645,3298.4,3298.3,0.60645]
[1737068400200,2.2442,3298.5,3298.2,3.55553332]